Cogmind - Beta 17 @@@ ROGUE MODE // 2026.07.23 @ 18:03:49 Player: Akl Result: Destroyed by UQ-VNI(j) with Overtuned Pulse Rifle Performance ------------- Evolutions (0) 0 Regions Visited (3) 600 Robots Destroyed (10) 50 Value Destroyed (277) 277 Prototype IDs (7) 140 Alien Tech Used (0) 0 Bonus (800) 800 TOTAL SCORE: 1867 Bonus ------- Registered with UFD 300 Met Optimus in HQ 500 Cogmind --------- Core Integrity 0/250 Matter 270/300 Energy 158/160 System Corruption 0% Temperature Cool (66) Movement Walking (95) Location -7/Scraptown Parts ------- > --- POWER (1) -------- Light Nuclear Core > --- PROPULSION (2) --- Overtuned Titanium Leg VSS Leg > --- UTILITY (2) ------ Small Storage Unit A0-MCA's Component Scanner > --- WEAPON (2) ------- Overtuned Barrage Gun Overtuned Barrage Gun > --- INVENTORY (8) ---- Enhanced Optical Array Sensor Array Seismic Detector Grenade Launcher Mining Claw Peak State ------------ > --- POWER ------------ Light Nuclear Core > --- PROPULSION ------- Overtuned Titanium Leg VSS Leg > --- UTILITY ---------- Small Storage Unit A0-MCA's Component Scanner > --- WEAPON ----------- Overtuned Barrage Gun Overtuned Barrage Gun > --- INVENTORY -------- Improved Carbon-fiber Leg Scrap Suit Enhanced Optical Array Sensor Array Seismic Detector Grenade Launcher Mining Claw [Rating: 27] Favorites ----------- Power Light Nuclear Core Engine Light Ion Engine Power Core Light Nuclear Core Propulsion Wheel Leg Aluminum Leg Wheel Wheel Utility Small Storage Unit Device Improved Terrain Scanner Storage Small Storage Unit Processor A0-MCA's Component Scanner Weapon Light Assault Rifle Energy Gun Overtuned Pulse Rifle Ballistic Gun Light Assault Rifle Slashing Weapon Mining Claw Build | -11 -10 -10 -7 ------- Run | Yrd Mat Sub Scr Slots Evolved . | . . . . Power . | . . . . Propulsion . | . . . . Utility . | . . . . Weapon . | . . . . Parts Attached 26 | 7 6 2 11 Power 2 | . 1 . 1 Engine 1 | . 1 . . Core 1 | . . . 1 Reactor . | . . . . Propulsion 12 | 4 2 1 5 Treads . | . . . . Leg 7 | . 2 . 5 Wheel 5 | 4 . 1 . Hover . | . . . . Flight . | . . . . Utility 4 | 1 2 . 1 Device 2 | 1 1 . . Storage 1 | . 1 . . Processor 1 | . . . 1 Hackware . | . . . . Protection . | . . . . Artifact . | . . . . Weapon 8 | 2 1 1 4 Energy Gun 1 | . . . 1 Energy Cannon . | . . . . Ballistic Gun 6 | 2 . 1 3 Ballistic Cannon . | . . . . Launcher . | . . . . Special Weapon . | . . . . Impact Weapon . | . . . . Slashing Weapon 1 | . 1 . . Piercing Weapon . | . . . . Special Melee Weapon . | . . . . Unidentified Prototypes . | . . . . Parts Lost 4 | . . 3 1 Power 1 | . . 1 . Propulsion 2 | . . 1 1 Utility . | . . . . Weapon 1 | . . 1 . Highest Loss Streak 3 | . . 3 1 To Critical Strikes . | . . . . Average Backups 7 | 4 5 7 7 Power . | 1 1 1 . Propulsion 1 | 1 2 2 1 Utility 2 | . 1 2 2 Weapon 3 | . . 2 3 Tool/Special . | . . . . Unused Backups 6 | . . . 6 Power 1 | . . . 1 Propulsion 1 | . . . 1 Utility 3 | . . . 3 Weapon 1 | . . . 1 Tool/Special . | . . . . Average Slot Usage (%) 71 | . 85 82 66 Engine 2 | . 5 10 . Core 4 | . . . 6 Leg 12 | . 20 . 14 Wheel 14 | . 7 26 12 Device 13 | . 21 14 11 Storage 13 | . 4 14 14 Processor 1 | . . . 2 Ballistic Gun 6 | . 21 8 4 Slashing Weapon 1 | . 2 9 . Peak Build Rating 27 | 7 9 10 27 Average Rating 8 | 3 8 8 9 On Entrance 5 | . 7 8 8 Avg Prop Armor Cover (%) 12 | . 20 6 12 Naked Turns . | . . . . Heaviest Build 16 | 3 11 11 16 Greatest Support 32 | 32 20 30 31 Greatest Overweight (x) 4 | . 1 . 4 Average Overweight (x) . | . . . . Largest Inventory Capacity 8 | 5 8 8 8 Average Capacity 7 | 5 6 8 8 Most Carried 8 | 5 8 8 8 Average Carried 7 | 4 5 7 7 Final Capacity 8 | 5 8 8 8 Final Carried 8 | 5 8 7 5 Class Distribution -------------------- 100% | Mutant Dominant Class ---------------- Mutant | -10/Materials Mutant | -10/Subcaves Mutant | -7/Scraptown Resources | -11 -10 -10 -7 ----------- Run | Yrd Mat Sub Scr Matter Collected 684 | 288 38 93 265 Remotely . | . . . . Salvage Created 441 | 137 . 32 272 Parts 27 | 9 . 1 17 Haulers Intercepted . | . . . . Recyclers Shooed . | . . . . Parts Field Recycled . | . . . . Retrieved Matter . | . . . . Parts Self-Destructed 18 | . . . 18 Prevented . | . . . . Parts Restored . | . . . . Kills | -11 -10 -10 -7 ------- Run | Yrd Mat Sub Scr Combat Hostiles Destroyed 6 | . . 1 5 Guns 6 | . . 1 5 Classes Destroyed 6 | 2 . 1 3 Tunneler 3 | 3 . . . Recycler 1 | 1 . . . Subdweller 1 | . . 1 . Federalist 1 | . . . 1 Explorer 2 | . . . 2 Scrapper 2 | . . . 2 Best Kill Streak 4 | 3 . 1 4 Combat Bots Only 4 | . . 1 4 Max Kills in Single Turn 1 | 1 . 1 1 Gunslinging . | . . . . Exploded . | . . . . Melee . | . . . . Uniques/NPCs Destroyed . | . . . . Combat | -11 -10 -10 -7 -------- Run | Yrd Mat Sub Scr Hostile Shots Fired 55 | . 8 13 34 Missed 14 | . 3 2 9 Hits 41 | . 5 11 25 Melee 1 | . . . 1 Projectile 40 | . 5 11 24 Critical Strikes 1 | . . . 1 Damage Taken 837 | . 41 292 504 Core 254 | . 19 88 147 Absorbed by Shields . | . . . . Core Remaining (%) 100 | 100 . . . Volleys Fired 40 | 9 4 11 16 Largest 2 | 2 2 2 2 Hottest 60 | 40 40 40 60 Shots Fired 69 | 18 8 18 25 Gun 69 | 18 8 18 25 Cannon . | . . . . Launcher . | . . . . Special . | . . . . Kinetic 69 | 18 8 18 25 Thermal . | . . . . Explosive . | . . . . Electromagnetic . | . . . . Robot Hit Streak 15 | 6 10 15 8 Robot Miss Streak 5 | 2 4 5 1 Penetration Max . | . . . . Secondary Targets 2 | . . . 2 Max Gunslinging Chain 1 | . . . 1 Shots Hit Robots 47 | 11 4 16 16 Core Hits 19 | 7 1 4 7 Critical Kills 1 | . . . 1 Critical Parts Destroyed . | . . . . Critical Strikes 1 | . . . 1 Destroy 1 | . . . 1 Melee Attacks 6 | . 6 . . Impact . | . . . . Slashing 6 | . 6 . . Piercing . | . . . . Sneak Attacks . | . . . . Combat Hostiles . | . . . . Follow-up Attacks . | . . . . Damage Inflicted 575 | 96 28 128 323 Guns 575 | 96 28 128 323 Cannons . | . . . . Explosions . | . . . . Melee . | . . . . Ramming . | . . . . Kinetic 575 | 96 28 128 323 Thermal . | . . . . Explosive . | . . . . Electromagnetic . | . . . . Impact . | . . . . Slashing . | . . . . Piercing . | . . . . Highest Corruption . | . . . . Average Corruption . | . . . . Corruption Purged . | . . . . Corruption Blocked . | . . . . Overload Shots . | . . . . Overflow Damage . | . . . . Projectiles . | . . . . Explosions . | . . . . Melee . | . . . . Knockbacks . | . . . . Impact . | . . . . Kinetic . | . . . . Secondary . | . . . . Self-Inflicted Damage . | . . . . Shots . | . . . . Rammed . | . . . . Targets Rammed . | . . . . Kicked . | . . . . Crushed . | . . . . Highest Temperature 72 | . . . 72 Average Temperature 26 | . . . 26 Received Heat Transfer 277 | . . . 277 Siege Activations . | . . . . Martial Activations . | . . . . Shielding Activations . | . . . . Robots Disrupted . | . . . . Combat Hostiles . | . . . . Robots Corrupted . | . . . . Combat Hostiles . | . . . . Parts Fried . | . . . . Impact Corruptions . | . . . . Robots Melted . | . . . . Combat Hostiles . | . . . . Parts Melted . | . . . . Heat Transferred . | . . . . Parts Sabotaged . | . . . . Parts Stolen . | . . . . Parts Stripped . | . . . . Power Chain Reactions . | . . . . Alert | -11 -10 -10 -7 ------- Run | Yrd Mat Sub Scr Maximum Alert Level . | . . . . Low Security (%) 100 | 100 100 . . Level 1 . | . . . . Level 2 . | . . . . Level 3 . | . . . . Level 4 . | . . . . Level 5 . | . . . . High Security . | . . . . Max Security . | . . . . Peak Influence 15 | 5 15 . . Initial 3 | . 3 . . Average 1 | 1 1 . . Influence Increases 35 | 20 15 . . Destroy 0b10 Robot/NC 20 | 20 . . . Lose Combat Pursuer 15 | . 15 . . Influence Decreases 35 | 15 20 . . Entered New Map 2 | . 2 . . Time Decay 33 | 15 18 . . Squads Dispatched . | . . . . Investigation . | . . . . Extermination . | . . . . Reinforcement . | . . . . Assault . | . . . . Garrison . | . . . . Intercept . | . . . . Searches Triggered . | . . . . Construction Impeded . | . . . . Haulers Reinforced . | . . . . Active Scanning Responses . | . . . . Cargo Convoy Interrupts . | . . . . Stealth | -11 -10 -10 -7 --------- Run | Yrd Mat Sub Scr Distress Signals 1 | . 1 . . Communications Jammed . | . . . . Distress Signals . | . . . . Times Spotted 32 | . 3 1 28 Peak Tracking Total 7 | . 3 1 7 Tactical Retreats 1 | . 1 . . Traps | -11 -10 -10 -7 ------- Run | Yrd Mat Sub Scr Traps Triggered 2 | . 1 1 . Indirectly . | . . . . Trap Hack Attempts . | . . . . Triggered . | . . . . Disarmed . | . . . . Reprogrammed . | . . . . Reused . | . . . . Traps Extracted . | . . . . Installed . | . . . . Triggered . | . . . . Machines | -11 -10 -10 -7 ---------- Run | Yrd Mat Sub Scr Machines Disabled 1 | . . . 1 Max in Single Turn 1 | . . . 1 Machines Repaired . | . . . . Machines Dismantled . | . . . . Machines Sabotaged . | . . . . Overloaded Fab Kills . | . . . . Hacking | -11 -10 -10 -7 --------- Run | Yrd Mat Sub Scr Machines Accessed 4 | . . . 4 Terminals . | . . . . Fabricators . | . . . . Repair Stations . | . . . . Recycling Units . | . . . . Scanalyzers . | . . . . Garrison Access . | . . . . Total Hacks 29 | . . . 29 Successful 29 | . . . 29 Failed . | . . . . Catastrophic . | . . . . Database Lockouts . | . . . . Manual . | . . . . Terminals . | . . . . Fabricators . | . . . . Repair Stations . | . . . . Recycling Units . | . . . . Scanalyzers . | . . . . Garrison Access . | . . . . Terminal Hacks 29 | . . . 29 Record 29 | . . . 29 Fabricator Hacks . | . . . . Repair Station Hacks . | . . . . Recycling Unit Hacks . | . . . . Scanalyzer . | . . . . Garrison Access Hacks . | . . . . Unauthorized Hacks . | . . . . Terminals . | . . . . Fabricators . | . . . . Repair Stations . | . . . . Recycling Units . | . . . . Scanalyzers . | . . . . Garrison Access . | . . . . Data Cores Recovered . | . . . . Used . | . . . . Hacking Detections . | . . . . Full Trace Events . | . . . . Feedback Events . | . . . . Feedback Blocked . | . . . . Robot Schematics Acquired . | . . . . Robots Built . | . . . . Authchips . | . . . . Time . | . . . . Total Robot Build Rating . | . . . . Part Schematics Acquired . | . . . . Parts Built . | . . . . Authchips . | . . . . Time . | . . . . Total Part Build Rating . | . . . . Part Studies Acquired . | . . . . Parts Repaired . | . . . . Time . | . . . . Parts Recycled . | . . . . Recycled Matter . | . . . . Retrieved Matter . | . . . . Retrieved Components . | . . . . Parts Scanalyzed . | . . . . Part Schematics Acquired . | . . . . Parts Damaged . | . . . . Bothacking | -11 -10 -10 -7 ------------ Run | Yrd Mat Sub Scr Used RIF Installer . | . . . . Robots Hacked . | . . . . Non-combat . | . . . . Combat . | . . . . Robot Hacks Applied . | . . . . Relay Couplers Released . | . . . . Fabnet Peak Effective % . | . . . . Robots Rewired . | . . . . Allies Hacked . | . . . . Hacks Repelled . | . . . . Allies | -11 -10 -10 -7 -------- Run | Yrd Mat Sub Scr Total Allies . | . . . . Largest Group . | . . . . Highest-Rated Group . | . . . . Highest-Rated Ally . | . . . . Total Orders . | . . . . Ally Attacks . | . . . . Total Damage . | . . . . Kills . | . . . . Allies Corrupted . | . . . . Allies Melted 4 | . . . 4 Intel | -11 -10 -10 -7 ------- Run | Yrd Mat Sub Scr Active Infowar (turns) 1944 | 11 169 391 1373 Terrain 1944 | 11 169 391 1373 Seismic 101 | . 101 . . Robot Analysis Total . | . . . . Derelict Logs Recovered 1 | . . 1 . Drone Launches . | . . . . Drone Recoveries . | . . . . Exploration | -11 -10 -10 -7 ------------- Run | Yrd Mat Sub Scr Turns Passed 2270 | 90 169 391 1620 Spaces Moved 2081 | 70 131 435 1445 Core 133 | 33 98 . 2 Treads . | . . . . Legs 760 | . . . 760 Wheels 1188 | 37 33 435 683 Hover . | . . . . Flight . | . . . . Fastest Speed 50 | 50 50 80 80 Average Speed 99 | 71 92 82 106 Slowest Speed 250 | 100 100 110 250 Overloaded Moves . | . . . . Propulsion Burnouts . | . . . . Robots Hopped . | . . . . Potential Cave-ins . | . . . . Cave-ins Triggered . | . . . . Exploration Rate (%) 36 | 3 25 30 89 Regions Visited 3 Branch Regions 2 Pre-discovered Areas . | . . . . Known Exits Taken . | . . . . Unknown Exits Taken 3 | 1 1 1 . Scrap Searched 8 | . . 4 4 Spaces Dug 1 | . 1 . . Terrain Destroyed 1 | . 1 . . Melee 1 | . 1 . . Projectile . | . . . . AOE . | . . . . Terrain Rammed . | . . . . Walls Destroyed . | . . . . Machines Disabled . | . . . . Actions | -11 -10 -10 -7 --------- Run | Yrd Mat Sub Scr Total 2217 | 94 158 452 1513 Wait 11 | . 5 . 6 Move 2078 | 69 130 434 1445 Hop . | . . . . Pick Up 19 | 7 4 2 6 Fast Attach 12 | 4 1 . 7 Attach 17 | 2 2 3 10 Detach 6 | . 1 . 5 Swap 10 | 1 5 1 3 Drop 18 | 2 . 1 15 Fire 40 | 9 4 11 16 Melee 6 | . 6 . . Ram . | . . . . Kick . | . . . . Crush . | . . . . Escape Stasis . | . . . . Rewire . | . . . . Trap . | . . . . Miscellaneous . | . . . . Route ------- -11/Scrapyard -10/Materials (discovered 2 exits: [*Min] / [*Sub]) -10/Subcaves -7/Scraptown (discovered 2 exits: [*Fac x2]) History --------- Turn | Location | Event 16 | -11/Scrapyard | Discovered new exit (range 14) 91 | -11/Scrapyard | Entered Materials 160 | -10/Materials | Discovered new exit (range 15) 196 | -10/Materials | Discovered new exit (range 11) 260 | -10/Materials | Entered Subcaves 261 | -10/Subcaves | Approached by a straggling Scientist 265 | -10/Subcaves | Learned Materials interactive machine intel 314 | -10/Subcaves | Build established: Mutant 576 | -10/Subcaves | Lost 3 parts (1p1n1w) 651 | -10/Subcaves | Entered Scraptown 793 | -7/Scraptown | Visited Spacefarers 858 | -7/Scraptown | Visited CPS Storage 906 | -7/Scraptown | Visited UFD Registry 906 | -7/Scraptown | Registered with UFD as "Cogthruster" 937 | -7/Scraptown | Visited Cyclists 953 | -7/Scraptown | Entered Cyclist Reading Room 978 | -7/Scraptown | Visited Cave Peace 1012 | -7/Scraptown | Visited Bundlers 1063 | -7/Scraptown | Visited Awakened 1234 | -7/Scraptown | Discovered new exit (range 3) 1608 | -7/Scraptown | Visited Science Guys 1642 | -7/Scraptown | Visited Abandonware Association 1656 | -7/Scraptown | Learned abandonware demo "SHUTEYE.EXE" 1656 | -7/Scraptown | Learned abandonware demo "TRNCOAT.EXE" 1681 | -7/Scraptown | Visited Junk Repository 1775 | -7/Scraptown | Discovered new exit (range 3) 1810 | -7/Scraptown | Visited LU-1G1's Boring Crew 1855 | -7/Scraptown | Visited Observation Area 1903 | -7/Scraptown | Visited DA-N13 Charitable Foundation 1913 | -7/Scraptown | Found DCF Scrap (30 items) 1950 | -7/Scraptown | Met Optimus 1950 | -7/Scraptown | Accepted into 0bPrime 2012 | -7/Scraptown | Visited A0-MCA Data Center 2018 | -7/Scraptown | Given a C+ rating by A0-MCA 2025 | -7/Scraptown | Found A0-MCA's Component Scanner 2067 | -7/Scraptown | Civil war broke out across Scraptown 2132 | -7/Scraptown | Core integrity fell below 50% 2183 | -7/Scraptown | Found Scrap Suit 2201 | -7/Scraptown | Lost 5 allies 2271 | -7/Scraptown | Lost 8 allies 2271 | -7/Scraptown | Core integrity fell below 20% 2271 | -7/Scraptown | Destroyed by UQ-VNI(j) with Overtuned Pulse Rifle Last Messages --------------- beyond repair. 02260_ Acquired 4 matter. 02260_ Lgt. Nuclear Core fries itself beyond repair. 02261_ Slug penetrates Machine. 02263_ Gauss Rifle fries itself beyond repair. 02265_ Imp. Carbon-fiber Leg fries itself beyond repair. 02266_ Imp. Cooling System fries itself beyond repair. 02266_ XA-QTZ(j) destroyed. 02267_ Targeting Computer fries itself beyond repair. 02269_ Imp. Deuterium Engine fries itself beyond repair. 02271_ Pulse Rifle fries itself beyond repair. 02271_ Targeting Computer fries itself beyond repair. 02271_ 4V-K3S(x) destroyed. 02271_ Switching to secondary target: UQ-VNI(j). Map ----- +----------------------------------------------------+ | #################??#####?????#" "#???????????????? | | "##"""##""|##"""#??## ##????# < #???????????????? | | ##""!##""|##!!"#### ###### ####?#??????????? | | #??????????????? | | #??????????????? | | #################### ############?????????????? | | ???????#???????????## ##????????????????????????? | | ???????#?#?#?#?#???## #?????????#???????????????? | | ?????????#??????????# ############???????????#??? | | #########??#????????# ## # # #??????????????? | | """"""""#?#?????????# ## # """ # #??????????????? | | " " " #?????????#?# ## # "#" # #??????????????? | | #???##?????## ##*# """ # #??##??????????? | | "# #" #?########### ##[ #??????????????? | | "#X#" #?#!!# #] # ##%####### #?#???????????#? | | "###" #?#[]# # ; # [ # #?#????????????? | | """"" #?#! # # #!!# # # #?????????????#? | | #?# #%*#[! # #??????????????? | | #?# #!%#==! #??????????????? | | ### ########### #####=%!!%#########???#??????????? | | ### ########"##%#####=|[=!#;#############?????#??? | | """ """"""" "!""" [%!=![ ;;=""""""""""#????????? | | *%[[=!%== ![ ;#*"==! "#????????? | | [ !!==*! !*%!= ;;=%["""""" "#????????? | | !!%=[[ [[[%! %;#[!*"????" "#????????# | | !%!!=%= **=*!@/;;!%="????" "#????????? | | =%!%=! ===%!!%= ==!"?? ?" "#????????? | | """""""""""""""*"" 3%!%=% ## """""" "#????????? | | """"""""""""""""" """!!=! ## "#????????? | | # ################" =!*[= ## "" """"""#????????? | | ##??????#?#"[ %!=%[;####"########??#?????? | | X"#??????#?#" %%[=!!;# != #???#?????????? | | " "" ##????????#""%=!=! ;# ]% ##????????????? | | "" X"#??????### "j!%=% ## *!! #???????#?#???? | | "=%###%#####!# g*[[* #%=**!###?????????????? | | "" != [!%= [!= !%!!! =*=[/###????#????????? | | "" *[!!=!!=!==*===%!##=//]!=#?????????????? | | =%[ "= #########%# %!!!%%=##!!]%=*#?????????????? | | "" ""##?????###"*!%!=["##*!]*=*#?????????????? | | " "" ##?#??????#" [==!!"############??????????? | | X"#?#??????# =[[!! ##""""""""""??????????? | | ##????????#" [ == ## """""""""#?#???????? | | # ################"!=[= !"## """""""""##????????? | | """"""""""""""""""""%===!* ## " """"#?????????? | | """"""""""""""" """*/%*%!%[ """"#?????????? | | % [*==!!"## ! """"#?????????? | | [ =%[!/ ! "## """""""""#?????????? | | =%= / = "# ""!""""""#?????????? | | !%=!= % =% *"# """""""""#?????????? | | *!!%*!& [%! =!%############?????????? | +----------------------------------------------------+ Best States ------------- Heat Dissipation 25 Energy Generation 14 Energy Capacity 160 Matter Stores 300 Matter Capacity 300 Sight Range 16 Terrain Scan Range 16 Terrain Scan Density 10 Evasion (%) 55 Item Schematics ----------------- None Robot Schematics ------------------ None Fabricated ------------ Nothing Repaired ---------- Nothing Studied --------- None Alien Tech Used ----------------- None Achievements -------------- Bob, First Of His Name Civilization 2243 Link The Feds Challenges ------------ None Game ------ Seed GunPotentialTendrils Manual? 0 Play Time 00:34:51 Cumulative 33.5 hours Start 2026.07.23 @ 17:24:25 End 2026.07.23 @ 18:03:49 Sessions 1 Manual Loads 0 Difficulty Rogue Special Mode None Game No. 57 Rogue 57 Adventurer 0 Explorer 0 Win Type - Total 0 Types 0/0/0/0/0/0/0/0/0/0 Lore% 24 Gallery% 28 Achievement% 22 Wizard Run 0 Options --------- Layout 1 ASCII 0 Keyboard 0 Movement Numpad Keybinds 0 Fullscreen 1 Font 24/Smallcaps Map View 50x35 Zoom Use 0% Tactical HUD 1 Map Filters NONE Filters NONE Steam 1 RUN: 397715d2-2157-47ef-a142-0e559ee3fb62